[Event "45th FIDE Womens Olympiad 2024"]
[Site "Budapest"]
[Date "2024.09.13"]
[Round "3.113"]
[White "Henderson de La Fuente, Andrea"]
[Black "Goossens, Hanne"]
[Result "1-0"]
[ECO "C77"]
[WhiteElo "1986"]
[BlackElo "2189"]
[Annotator "RC"]
[PlyCount "131"]
[EventDate "2024.09.05"]
[EventType "team-tourn"]
[EventCountry "HUN"]
[SourceTitle "playchess.com"]
[Source "ChessBase"]
[SourceQuality "1"]
[WhiteTeam "Andorra"]
[BlackTeam "Belgium"]
[WhiteTeamCountry "AND"]
[BlackTeamCountry "BEL"]
[TimeControl "40/5400+30:1800+30"]

1. e4 e5 2. Nf3 Nc6 3. Bb5 a6 4. Ba4 Nf6 5. d3 d6 6. c3 g6 7. Nbd2 Bg7 8. Nf1 O-O 9. Ng3 b5 10. Bc2 d5 11. Be3 Re8 12. O-O h6 13. h3 a5 14. Re1 d4 15. Bd2 Be6 16. cxd4 exd4 17. Qc1 Kh7 18. Bb3 Qd7 19. Bxe6 Rxe6 20. Ne2 Bf8 21. a3 a4 22. b4 axb3 23. Qb2 Bc5 24. Bxh6 Bb6 25. Bd2 Ree8 26. Qxb3 Na5 27. Qb2 c5 28. Reb1 c4 29. Qxb5 Qxb5 30. Rxb5 Nb3 31. Ra2 Ba7 32. dxc4 Nxd2 33. Nxd2 Nxe4 34. Nxe4 Rxe4 35. Rd5 d3 36. Rxd3 Rxc4 37. Rd7 Kg7 38. Rb2 Rb8 39. Rbb7 Rxb7 40. Rxb7 Ra4 41. Rb3 Bc5 42. Nc3 Rxa3 43. Rxa3 Bxa3 44. Nd5 g5 45. g4 Kg6 46. Ne3 Bd6 47. Kg2 Kf6 48. Kf3 Kg6 49. Ke4 Ba3 50. Kd5 Bb4 51. Kc6 Be1 52. f3 Bg3 53. Kd7 Be5 54. Ke7 Bf4 55. Nf5 Be5 56. Nd6 f6 57. Nf5 Bc3 58. Kf8 Bb2 59. Ne7+ Kh7 60. Kf7 Be5 61. Nd5 Kh6 62. Nxf6 Bf4 63. Ne4 Bc1 64. Kf6 Be3 65. Nd6 Bd4+ 66. Kf5 1-0

[Event "45th FIDE Womens Olympiad 2024"]
[Site "Budapest"]
[Date "2024.09.13"]
[Round "3.114"]
[White "Vanduyfhuys, Daria"]
[Black "De la Riva Real, Ariadna"]
[Result "1-0"]
[ECO "D59"]
[WhiteElo "2112"]
[BlackElo "1823"]
[Annotator "NA RC"]
[PlyCount "119"]
[EventDate "2024.09.05"]
[EventType "team-tourn"]
[EventCountry "HUN"]
[SourceTitle "playchess.com"]
[Source "ChessBase"]
[SourceQuality "1"]
[WhiteTeam "Belgium"]
[BlackTeam "Andorra"]
[WhiteTeamCountry "BEL"]
[BlackTeamCountry "AND"]
[TimeControl "40/5400+30:1800+30"]

1. d4 d5 2. c4 e6 3. Nf3 Nf6 4. Nc3 Be7 5. Bg5 O-O 6. e3 h6 7. Bh4 b6 8. cxd5 Nxd5 9. Bxe7 Qxe7 10. Nxd5 exd5 11. Bd3 Be6 12. O-O c5 13. Ne5 Nd7 14. Nxd7 Qxd7 15. dxc5 bxc5 16. Rc1 Rfc8 17. Qd2 a5 18. f4 f5 19. Rfd1 Qe7 20. Be2 Rd8 21. Bf3 a4 22. Qc3 Rac8 23. Qa3 Bf7 24. Kf2 Qh4+ 25. Kg1 Qe7 26. Rd3 Qb7 27. Rdc3 Qb6 28. Rxc5 Rxc5 29. Qxc5 Qxb2 30. Rc2 Qa1+ 31. Kf2 Qf6 32. g3 d4 33. e4 fxe4 34. Bxe4 Bg6 35. Bxg6 Qxg6 36. Qc4+ Kh7 37. Qxa4 Qb6 38. Rd2 d3+ 39. Kf3 Qb7+ 40. Qe4+ Qxe4+ 41. Kxe4 Kg6 42. Rxd3 Ra8 43. a3 Kf6 44. g4 g5 45. f5 Ra4+ 46. Kf3 Rf4+ 47. Kg3 h5 48. h3 hxg4 49. hxg4 Rf1 50. Rd6+ Ke5 51. Re6+ Kd5 52. Re3 Rg1+ 53. Kf3 Rf1+ 54. Kg2 Rf4 55. Kg3 Rf1 56. Rf3 Rg1+ 57. Kf2 Rxg4 58. f6 Rc4 59. f7 g4 60. Rf5+ 1-0

[Event "45th FIDE Womens Olympiad 2024"]
[Site "Budapest"]
[Date "2024.09.13"]
[Round "3.115"]
[White "Muratet Carmona, Alexandra"]
[Black "De Rycke, Tyani"]
[Result "0-1"]
[ECO "B33"]
[WhiteElo "1796"]
[BlackElo "2110"]
[Annotator "NA RC"]
[PlyCount "90"]
[EventDate "2024.09.05"]
[EventType "team-tourn"]
[EventCountry "HUN"]
[SourceTitle "playchess.com"]
[Source "ChessBase"]
[SourceQuality "1"]
[WhiteTeam "Andorra"]
[BlackTeam "Belgium"]
[WhiteTeamCountry "AND"]
[BlackTeamCountry "BEL"]
[TimeControl "40/5400+30:1800+30"]

1. e4 c5 2. Nf3 Nc6 3. d4 cxd4 4. Nxd4 Nf6 5. Nc3 e5 6. Ndb5 d6 7. Bg5 a6 8. Na3 b5 9. Nab1 Be7 10. Bxf6 Bxf6 11. Nd5 O-O 12. a4 b4 13. Bc4 Be6 14. Nd2 Bg5 15. O-O Ne7 16. f4 exf4 17. Nxf4 Bxc4 18. Nxc4 Qc7 19. Qd3 Bxf4 20. Rxf4 d5 21. e5 dxc4 22. Rxc4 Qxe5 23. Rxb4 Qc5+ 24. Qd4 Qxd4+ 25. Rxd4 Rfd8 26. Rc4 Rac8 27. Re4 Nd5 28. Rae1 Nf6 29. R4e2 Kf8 30. Rc1 Rd4 31. b3 Nd5 32. c4 Nf4 33. Rec2 Rd3 34. g3 Ne6 35. Rb1 Nc5 36. b4 Nxa4 37. Ra1 Nb6 38. Rxa6 Nxc4 39. b5 Rd5 40. Ra4 Rdc5 41. Rb4 Nd6 42. Rcb2 Rb8 43. b6 Rc6 44. Kf2 Rb7 45. Ke3 Nc4+ 0-1

[Event "45th FIDE Womens Olympiad 2024"]
[Site "Budapest"]
[Date "2024.09.13"]
[Round "3.116"]
[White "Musabayeva, Diana"]
[Black "Real Puigdollers, Silvia"]
[Result "1-0"]
[ECO "B01"]
[WhiteElo "1911"]
[BlackElo "1781"]
[Annotator "NA RC"]
[PlyCount "91"]
[EventDate "2024.09.05"]
[EventType "team-tourn"]
[EventCountry "HUN"]
[SourceTitle "playchess.com"]
[Source "ChessBase"]
[SourceQuality "1"]
[WhiteTeam "Belgium"]
[BlackTeam "Andorra"]
[WhiteTeamCountry "BEL"]
[BlackTeamCountry "AND"]
[TimeControl "40/5400+30:1800+30"]

1. e4 d5 2. exd5 Qxd5 3. Nc3 Qd8 4. d4 Nf6 5. Nf3 g6 6. Bc4 Bg7 7. O-O O-O 8. h3 Nc6 9. Be3 b6 10. a3 Bb7 11. Qe2 a6 12. Rad1 Qc8 13. Bf4 Nh5 14. Bh2 Na5 15. Bd5 e6 16. Bxb7 Nxb7 17. Ne4 Nf6 18. Be5 Nxe4 19. Qxe4 Nd6 20. Qc6 Rd8 21. Rd3 Qd7 22. Qxd7 Rxd7 23. b3 Rad8 24. Bxg7 Kxg7 25. Ne5 Nb5 26. Nxd7 Rxd7 27. c3 e5 28. a4 e4 29. Re3 Nd6 30. f3 f5 31. fxe4 Nxe4 32. g4 Rf7 33. Rxe4 fxe4 34. Rxf7+ Kxf7 35. Kf2 Kf6 36. Ke3 Kg5 37. Kxe4 Kh4 38. Kf4 h5 39. a5 b5 40. c4 b4 41. d5 Kxh3 42. gxh5 gxh5 43. c5 h4 44. Kf3 Kh2 45. d6 cxd6 46. cxd6 1-0

[Event "45th FIDE Womens Olympiad 2024"]
[Site "Budapest"]
[Date "2024.09.13"]
[Round "3.117"]
[White "Sulyok, Eszter"]
[Black "Marape, Naledi"]
[Result "1-0"]
[ECO "A25"]
[WhiteElo "2080"]
[BlackElo "1926"]
[Annotator "NA RC"]
[PlyCount "47"]
[EventDate "2024.09.05"]
[EventType "team-tourn"]
[EventCountry "HUN"]
[SourceTitle "playchess.com"]
[Source "ChessBase"]
[SourceQuality "1"]
[WhiteTeam "Hungary C"]
[BlackTeam "Botswana"]
[WhiteTeamCountry "HUN"]
[BlackTeamCountry "BOT"]
[TimeControl "40/5400+30:1800+30"]

1. c4 e5 2. g3 Nc6 3. Bg2 g6 4. Nc3 Bg7 5. d3 Nge7 6. e3 d6 7. Nge2 O-O 8. O-O f5 9. a3 g5 10. f4 g4 11. Nd5 h5 12. Rb1 Ng6 13. b4 h4 14. Bb2 Nce7 15. e4 c6 16. Ne3 Be6 17. d4 exf4 18. Nxf4 Nxf4 19. Rxf4 Bh6 20. d5 Bxf4 21. gxf4 Bc8 22. Qd4 Kf7 23. exf5 Bxf5 24. Re1 1-0

[Event "45th FIDE Womens Olympiad 2024"]
[Site "Budapest"]
[Date "2024.09.13"]
[Round "3.118"]
[White "Gabatshwarwe Refilwe"]
[Black "Toth, Lili"]
[Result "1/2-1/2"]
[ECO "D00"]
[WhiteElo "1787"]
[BlackElo "2105"]
[Annotator "NA RC"]
[PlyCount "84"]
[EventDate "2024.09.05"]
[EventType "team-tourn"]
[EventCountry "HUN"]
[SourceTitle "playchess.com"]
[Source "ChessBase"]
[SourceQuality "1"]
[WhiteTeam "Botswana"]
[BlackTeam "Hungary C"]
[WhiteTeamCountry "BOT"]
[BlackTeamCountry "HUN"]
[TimeControl "40/5400+30:1800+30"]

1. d4 Nf6 2. Nc3 d5 3. Bf4 c5 4. e3 e6 5. Nb5 Na6 6. c3 Be7 7. Nf3 Nh5 8. Bg3 Nxg3 9. hxg3 cxd4 10. exd4 Nb8 11. a4 a6 12. Na3 Nd7 13. Bd3 Qc7 14. Qe2 g6 15. Nb1 Bf6 16. Nbd2 O-O 17. Kf1 e5 18. Nxe5 Nxe5 19. dxe5 Qxe5 20. Qxe5 Bxe5 21. f4 Bf6 22. Kf2 Bd7 23. Nf3 b5 24. axb5 axb5 25. Rxa8 Rxa8 26. Re1 Ra2 27. Re2 Kg7 28. Rd2 b4 29. cxb4 Ra4 30. b5 Rb4 31. Be2 Bxb5 32. Rxd5 Bxe2 33. Kxe2 Rxb2+ 34. Rd2 h5 35. Rxb2 Bxb2 36. Nd2 f5 37. Nf3 Ba3 38. Nd2 Bc5 39. Nb3 Bb6 40. Nd2 Kf6 41. Nf3 Ba7 42. Nd2 Bb6 1/2-1/2

[Event "45th FIDE Womens Olympiad 2024"]
[Site "Budapest"]
[Date "2024.09.13"]
[Round "3.119"]
[White "Nandin-Erdene, Davaademberel"]
[Black "Banda Natalie Katlo"]
[Result "1-0"]
[ECO "A07"]
[WhiteElo "2039"]
[BlackElo "1893"]
[Annotator "NA RC"]
[PlyCount "79"]
[EventDate "2024.09.05"]
[EventType "team-tourn"]
[EventCountry "HUN"]
[SourceTitle "playchess.com"]
[Source "ChessBase"]
[SourceQuality "1"]
[WhiteTeam "Hungary C"]
[BlackTeam "Botswana"]
[WhiteTeamCountry "HUN"]
[BlackTeamCountry "BOT"]
[TimeControl "40/5400+30:1800+30"]

1. Nf3 d5 2. g3 Nf6 3. Bg2 c6 4. O-O Bg4 5. h3 Bxf3 6. Bxf3 Qd7 7. Bg2 e5 8. d3 Bc5 9. Nd2 O-O 10. e4 dxe4 11. dxe4 Rd8 12. Qe2 Qe6 13. Nf3 Nbd7 14. b3 a5 15. a3 b5 16. Bb2 Bd6 17. Nh4 a4 18. b4 Nb6 19. f4 Nc4 20. Bc3 c5 21. Nf5 cxb4 22. Nxd6 Qxd6 23. Bxb4 Qd4+ 24. Kh2 Qe3 25. Rae1 exf4 26. gxf4 Qxe2 27. Rxe2 Ra7 28. e5 Nd5 29. Rd1 Rad7 30. Bxd5 Rxd5 31. Rxd5 Rxd5 32. Kg3 Rd1 33. f5 Rd5 34. e6 fxe6 35. fxe6 Re5 36. Rf2 Re3+ 37. Kg2 g6 38. Rf8+ Kg7 39. e7 Nxa3 40. Bxa3 1-0

[Event "45th FIDE Womens Olympiad 2024"]
[Site "Budapest"]
[Date "2024.09.13"]
[Round "3.120"]
[White "Mosweu, Atlang Amolemo"]
[Black "Sipos, Stefania"]
[Result "0-1"]
[ECO "D01"]
[WhiteElo "1797"]
[BlackElo "1993"]
[Annotator "NA RC"]
[PlyCount "98"]
[EventDate "2024.09.05"]
[EventType "team-tourn"]
[EventCountry "HUN"]
[SourceTitle "playchess.com"]
[Source "ChessBase"]
[SourceQuality "1"]
[WhiteTeam "Botswana"]
[BlackTeam "Hungary C"]
[WhiteTeamCountry "BOT"]
[BlackTeamCountry "HUN"]
[TimeControl "40/5400+30:1800+30"]

1. d4 Nf6 2. Bf4 g6 3. Nc3 d5 4. Qd2 Bg7 5. O-O-O O-O 6. Bh6 c6 7. h4 b5 8. h5 Bxh6 9. Qxh6 gxh5 10. e3 Bf5 11. f3 b4 12. Na4 Kh8 13. Bd3 Bxd3 14. Rxd3 Rg8 15. Rd2 Nbd7 16. Qf4 Qa5 17. b3 Rac8 18. Kb2 c5 19. Nxc5 Nxc5 20. dxc5 Qxc5 21. Qd4 Qc3+ 22. Kb1 e5 23. Qd3 Qxd3 24. cxd3 Rg3 25. Rh3 Rxh3 26. Nxh3 Kg7 27. Nf2 Rc3 28. Nd1 Rc7 29. d4 e4 30. Kb2 Kg6 31. Nf2 exf3 32. gxf3 Re7 33. Re2 h4 34. Nd3 a5 35. Ne5+ Kh5 36. Rh2 Nd7 37. Nxd7 Rxd7 38. Kc2 f5 39. Kd3 Rg7 40. Rh3 Rg3 41. Rxg3 hxg3 42. Ke2 Kg5 43. Kf1 h5 44. Kg2 h4 45. Kh3 Kh5 46. Kg2 f4 47. e4 dxe4 48. fxe4 Kg4 49. d5 h3+ 0-1

[Event "45th FIDE Womens Olympiad 2024"]
[Site "Budapest"]
[Date "2024.09.13"]
[Round "3.121"]
[White "Hermoso Rodriguez, Ysvett"]
[Black "Keinanen, Anastasia"]
[Result "0-1"]
[ECO "A08"]
[WhiteElo "1943"]
[BlackElo "2212"]
[Annotator "RC"]
[PlyCount "76"]
[EventDate "2024.09.05"]
[EventType "team-tourn"]
[EventCountry "HUN"]
[SourceTitle "playchess.com"]
[Source "ChessBase"]
[SourceQuality "1"]
[WhiteTeam "Trinidad & Tobago"]
[BlackTeam "Finland"]
[BlackTeamCountry "FIN"]
[TimeControl "40/5400+30:1800+30"]

1. e4 c5 2. Nf3 Nc6 3. d3 g6 4. g3 Bg7 5. Bg2 e6 6. O-O Nge7 7. c3 d5 8. Nbd2 b6 9. Re1 O-O 10. e5 f6 11. d4 cxd4 12. cxd4 fxe5 13. dxe5 Qc7 14. Qe2 Nf5 15. Nb3 a5 16. g4 Nh6 17. h3 Rxf3 18. Bxf3 a4 19. Qb5 axb3 20. Qxb3 Nd4 21. Qd3 Nc2 22. Rd1 Nxa1 23. Bxd5 Ra5 24. Be4 Nf7 25. f4 Bb7 26. Be3 Bxe4 27. Qxe4 Rxa2 28. Bd4 Nb3 29. Bc3 Nc5 30. Qc4 Ra7 31. f5 Nxe5 32. Bxe5 Bxe5 33. b4 Ra1 34. Rxa1 Bxa1 35. fxe6 Qg3+ 36. Kh1 Qxh3+ 37. Kg1 Qe3+ 38. Kg2 Qe4+ 0-1

[Event "45th FIDE Womens Olympiad 2024"]
[Site "Budapest"]
[Date "2024.09.13"]
[Round "3.122"]
[White "Paasikangas, Johanna"]
[Black "La Fleur, Zara"]
[Result "1-0"]
[ECO "C48"]
[WhiteElo "2058"]
[BlackElo "1773"]
[Annotator "NA RC"]
[PlyCount "77"]
[EventDate "2024.09.05"]
[EventType "team-tourn"]
[EventCountry "HUN"]
[SourceTitle "playchess.com"]
[Source "ChessBase"]
[SourceQuality "1"]
[WhiteTeam "Finland"]
[BlackTeam "Trinidad & Tobago"]
[WhiteTeamCountry "FIN"]
[TimeControl "40/5400+30:1800+30"]

1. e4 e5 2. Nf3 Nc6 3. Nc3 Nf6 4. Bb5 Bc5 5. O-O d6 6. d4 exd4 7. Nxd4 Bd7 8. Bxc6 bxc6 9. Bg5 O-O 10. Nb3 Bb6 11. Qf3 a6 12. e5 dxe5 13. Rad1 Qe7 14. Ne4 Bg4 15. Qxg4 Nxg4 16. Bxe7 Rfe8 17. Bc5 f5 18. Ng3 g6 19. h3 Nh6 20. Rd7 Rad8 21. Rfd1 Nf7 22. a4 a5 23. Nf1 Nd6 24. Rxd8 Rxd8 25. Ne3 Nb7 26. Rxd8+ Nxd8 27. Nc4 Nf7 28. Nxb6 cxb6 29. Bxb6 Nd6 30. Bxa5 Nc4 31. Bc3 Kf7 32. Nc5 e4 33. a5 Ke7 34. b3 Nd6 35. Bb4 Kd8 36. Ne6+ Ke7 37. Bxd6+ Kxe6 38. a6 Kxd6 39. a7 1-0

[Event "45th FIDE Womens Olympiad 2024"]
[Site "Budapest"]
[Date "2024.09.13"]
[Round "3.123"]
[White "James, Shemilah"]
[Black "Bederdin, Lilja"]
[Result "0-1"]
[ECO "C55"]
[WhiteElo "1774"]
[BlackElo "2065"]
[Annotator "NA RC"]
[PlyCount "56"]
[EventDate "2024.09.05"]
[EventType "team-tourn"]
[EventCountry "HUN"]
[SourceTitle "playchess.com"]
[Source "ChessBase"]
[SourceQuality "1"]
[WhiteTeam "Trinidad & Tobago"]
[BlackTeam "Finland"]
[BlackTeamCountry "FIN"]
[TimeControl "40/5400+30:1800+30"]

1. e4 e5 2. Nf3 Nc6 3. Bc4 Nf6 4. d3 Be7 5. c3 O-O 6. O-O d5 7. exd5 Nxd5 8. Re1 Bg4 9. h3 Bh5 10. Bb3 Kh8 11. g4 Bg6 12. Nxe5 Nxe5 13. Rxe5 c6 14. d4 Bd6 15. Re1 Qh4 16. Kg2 f5 17. g5 Nf4+ 18. Bxf4 Bxf4 19. Rg1 Bh5 20. Qd3 Rae8 21. Bd1 Qxg5+ 22. Kh1 Qh4 23. Kg2 Bxd1 24. Qxd1 Rf6 25. Re1 Rg6+ 26. Kf3 Qxh3+ 27. Kxf4 Rg4+ 28. Kxf5 Qh5# 0-1

[Event "45th FIDE Womens Olympiad 2024"]
[Site "Budapest"]
[Date "2024.09.13"]
[Round "3.124"]
[White "Puuska, Heini"]
[Black "Ramnarine Singh, Aradhana"]
[Result "1-0"]
[ECO "D05"]
[WhiteElo "1930"]
[BlackElo "1589"]
[Annotator "NA RC"]
[PlyCount "75"]
[EventDate "2024.09.05"]
[EventType "team-tourn"]
[EventCountry "HUN"]
[SourceTitle "playchess.com"]
[Source "ChessBase"]
[SourceQuality "1"]
[WhiteTeam "Finland"]
[BlackTeam "Trinidad & Tobago"]
[WhiteTeamCountry "FIN"]
[TimeControl "40/5400+30:1800+30"]

1. d4 d5 2. Nf3 Nf6 3. e3 e6 4. g3 Be7 5. Bg2 O-O 6. O-O b6 7. b3 Nbd7 8. Bb2 Bb7 9. c4 c5 10. cxd5 Bxd5 11. Nc3 Bb7 12. Rc1 Rc8 13. Qe2 cxd4 14. exd4 Nd5 15. Ne4 N7f6 16. Ned2 Bd6 17. Nc4 Ba6 18. Rfe1 Bb4 19. Red1 Qe7 20. Nfe5 b5 21. Ne3 Nc3 22. Bxc3 Bxc3 23. Nc6 Qa3 24. Rxc3 b4 25. Ne7+ Kh8 26. Rxc8 Rxc8 27. Qd2 Rc7 28. Nc6 Bb7 29. Nc4 Qa6 30. Nxb4 Qb5 31. Nd6 Qd7 32. Nxb7 Rxb7 33. Bxb7 Qxb7 34. d5 exd5 35. Nxd5 h6 36. Nxf6 gxf6 37. Qxh6+ Kg8 38. Rd8# 1-0

[Event "45th FIDE Womens Olympiad 2024"]
[Site "Budapest"]
[Date "2024.09.13"]
[Round "3.125"]
[White "Corrales Jimenez, Zenia"]
[Black "Bwalya Mulwale, Lubuuto"]
[Result "1/2-1/2"]
[ECO "B11"]
[WhiteElo "2170"]
[BlackElo "1852"]
[Annotator "RC"]
[PlyCount "113"]
[EventDate "2024.09.05"]
[EventType "team-tourn"]
[EventCountry "HUN"]
[SourceTitle "playchess.com"]
[Source "ChessBase"]
[SourceQuality "1"]
[WhiteTeam "Mexico"]
[BlackTeam "Zambia"]
[WhiteTeamCountry "MEX"]
[BlackTeamCountry "ZAM"]
[TimeControl "40/5400+30:1800+30"]

1. e4 c6 2. Nf3 d5 3. Nc3 dxe4 4. Nxe4 Bf5 5. Ng3 Bg6 6. h4 h6 7. Ne5 Bh7 8. Qh5 g6 9. Bc4 e6 10. Qe2 Qe7 11. d4 Nf6 12. Bf4 Bg7 13. Qd2 Nbd7 14. Nxd7 Qxd7 15. O-O-O h5 16. Kb1 O-O 17. Bh6 b5 18. Bxg7 Kxg7 19. Be2 Rfd8 20. Qe3 Rac8 21. Bf3 Qc7 22. Qg5 Rd7 23. Rd2 Rcd8 24. Rhd1 a6 25. Rd3 a5 26. Be4 Nxe4 27. Nxe4 Rd5 28. Qf6+ Kg8 29. Rf3 Rf5 30. Rxf5 exf5 31. Ng5 Rd6 32. Qe5 Qd7 33. Nf3 f6 34. Qc5 Kg7 35. Re1 Bg8 36. b3 Bd5 37. Kb2 Bxf3 38. gxf3 Kf7 39. Kc3 Rd5 40. Qb6 Rd6 41. Qc5 Rd5 42. Qb6 Rd6 43. Qxa5 Rxd4 44. Re3 Rd1 45. Rd3 Rxd3+ 46. cxd3 Qd6 47. Qa7+ Ke6 48. d4 Qd5 49. Qg7 Qxf3+ 50. Kb4 Qxf2 51. Qg8+ Kd7 52. Qf7+ Kc8 53. Qxf6 Qg2 54. Qf8+ Kc7 55. Qe7+ Kc8 56. Qe8+ Kc7 57. Qe7+ 1/2-1/2

[Event "45th FIDE Womens Olympiad 2024"]
[Site "Budapest"]
[Date "2024.09.13"]
[Round "3.126"]
[White "Likando, Namakau"]
[Black "Miranda Rodriguez, Tania"]
[Result "0-1"]
[ECO "C54"]
[WhiteElo "1746"]
[BlackElo "2090"]
[Annotator "NA RC"]
[PlyCount "84"]
[EventDate "2024.09.05"]
[EventType "team-tourn"]
[EventCountry "HUN"]
[SourceTitle "playchess.com"]
[Source "ChessBase"]
[SourceQuality "1"]
[WhiteTeam "Zambia"]
[BlackTeam "Mexico"]
[WhiteTeamCountry "ZAM"]
[BlackTeamCountry "MEX"]
[TimeControl "40/5400+30:1800+30"]

1. e4 e5 2. d4 exd4 3. Bc4 Nc6 4. Nf3 Bc5 5. c3 Nf6 6. e5 d5 7. Bb3 Ne4 8. cxd4 Bb4+ 9. Bd2 Nxd2 10. Nbxd2 Bg4 11. Ba4 O-O 12. Bxc6 Bxf3 13. Qxf3 bxc6 14. Qe3 c5 15. O-O cxd4 16. Qxd4 c5 17. Qd3 Qe7 18. Nf3 Rfd8 19. Rad1 a5 20. Qf5 a4 21. a3 Ba5 22. Rc1 h6 23. h3 Bb6 24. Rfe1 Qe6 25. Qc2 c4 26. Red1 Rd7 27. Rd2 Bc7 28. Re2 Qb6 29. Rd1 Ra6 30. Nd4 Qg6 31. Qxg6 Rxg6 32. e6 fxe6 33. Rxe6 Rxe6 34. Nxe6 Bb6 35. Rc1 Rf7 36. Rc2 Rf6 37. Re2 Kf7 38. Ng5+ hxg5 39. g3 d4 40. Re5 d3 41. Rb5 d2 42. Rd5 Rxf2 0-1

[Event "45th FIDE Womens Olympiad 2024"]
[Site "Budapest"]
[Date "2024.09.13"]
[Round "3.127"]
[White "Mendez Tovar, Yessica Yissel"]
[Black "Mbatha, Constance"]
[Result "1/2-1/2"]
[ECO "C50"]
[WhiteElo "2004"]
[BlackElo "1799"]
[Annotator "NA RC"]
[PlyCount "111"]
[EventDate "2024.09.05"]
[EventType "team-tourn"]
[EventCountry "HUN"]
[SourceTitle "playchess.com"]
[Source "ChessBase"]
[SourceQuality "1"]
[WhiteTeam "Mexico"]
[BlackTeam "Zambia"]
[WhiteTeamCountry "MEX"]
[BlackTeamCountry "ZAM"]
[TimeControl "40/5400+30:1800+30"]

1. e4 e5 2. Nf3 Nc6 3. Nc3 d6 4. Bc4 Bg4 5. h3 Bh5 6. Be2 Nf6 7. d3 Be7 8. O-O O-O 9. g4 Bg6 10. Ne1 h6 11. Bf3 Nd4 12. Be3 Ne6 13. Ng2 c6 14. Ne2 d5 15. Ng3 d4 16. Bd2 Nh7 17. Kh2 Rc8 18. Be2 Bd6 19. Nf5 Bb8 20. Ngh4 Nf4 21. Rg1 Ng5 22. Rg3 Kh7 23. Ng2 Nge6 24. Bf1 Nxg2 25. Bxg2 Nf4 26. Bf3 Rg8 27. a4 c5 28. b3 Qf6 29. Qg1 b6 30. g5 hxg5 31. Rxg5 Rh8 32. Qg4 Ne6 33. Rg1 Rce8 34. Rxg6 fxg6 35. Nh4 g5 36. Bxg5 Nxg5 37. Qh5+ Qh6 38. Rxg5 Qxh5 39. Bxh5 Re6 40. Bg4 Rf6 41. Kg3 g6 42. Nf3 Re8 43. h4 Kh6 44. Nh2 Re7 45. Be2 Rf8 46. Ng4+ Kh7 47. h5 gxh5 48. Rxh5+ Kg7 49. Nh6 Re6 50. Nf5+ Kg8 51. Bg4 Ref6 52. f3 Re8 53. Kh4 Bc7 54. Rg5+ Kh8 55. Rh5+ Kg8 56. Rg5+ 1/2-1/2

[Event "45th FIDE Womens Olympiad 2024"]
[Site "Budapest"]
[Date "2024.09.13"]
[Round "3.128"]
[White "Mwale, Naomi"]
[Black "Tec Rodas, Sofia Isavelina"]
[Result "1-0"]
[ECO "C55"]
[WhiteElo "1767"]
[BlackElo "1800"]
[Annotator "NA"]
[PlyCount "73"]
[EventDate "2024.09.05"]
[EventType "team-tourn"]
[EventCountry "HUN"]
[SourceTitle "playchess.com"]
[Source "ChessBase"]
[SourceQuality "1"]
[WhiteTeam "Zambia"]
[BlackTeam "Mexico"]
[WhiteTeamCountry "ZAM"]
[BlackTeamCountry "MEX"]
[TimeControl "40/5400+30:1800+30"]

1. e4 e5 2. Nf3 Nc6 3. Bc4 Nf6 4. d3 h6 5. Be3 d6 6. h3 Na5 7. Bb3 Nxb3 8. axb3 Be7 9. Nc3 c5 10. O-O O-O 11. Nh2 d5 12. exd5 Nxd5 13. Ne4 f5 14. Nc3 f4 15. Bd2 Nxc3 16. Bxc3 Bd6 17. Nf3 Rf5 18. Re1 Qf6 19. Qe2 Be6 20. Nxe5 Bd5 21. Nf3 Qf7 22. d4 cxd4 23. Bxd4 a6 24. Rad1 Kh8 25. c4 Bc6 26. Qd3 Bc7 27. Re2 Rd8 28. Qc3 Bb6 29. Red2 Bxd4 30. Rxd4 Rxd4 31. Nxd4 Qg6 32. Nxc6 f3 33. Rd8+ Kh7 34. g4 Rf6 35. Ne5 Qb1+ 36. Kh2 Qf1 37. Qd3+ 1-0

[Event "45th FIDE Womens Olympiad 2024"]
[Site "Budapest"]
[Date "2024.09.13"]
[Round "3.129"]
[White "Charinda, Kudzanayi"]
[Black "Wafa, Shrook"]
[Result "1-0"]
[ECO "B56"]
[WhiteElo "1854"]
[BlackElo "2137"]
[Annotator "NA RC"]
[PlyCount "127"]
[EventDate "2024.09.05"]
[EventType "team-tourn"]
[EventCountry "HUN"]
[SourceTitle "playchess.com"]
[Source "ChessBase"]
[SourceQuality "1"]
[WhiteTeam "Zimbabwe"]
[BlackTeam "Egypt"]
[WhiteTeamCountry "ZIM"]
[BlackTeamCountry "EGY"]
[TimeControl "40/5400+30:1800+30"]

1. e4 c5 2. Nf3 Nc6 3. d4 cxd4 4. Nxd4 Nf6 5. Nc3 d6 6. Be3 g6 7. Qd2 Ng4 8. Bc4 Nxe3 9. Qxe3 Bg7 10. Nxc6 bxc6 11. O-O-O Qa5 12. Bb3 Rb8 13. f4 O-O 14. h4 Bg4 15. Rd3 h5 16. Nd1 c5 17. c4 Be6 18. Rd2 Rb4 19. Rc2 Rfb8 20. Rf1 Qa6 21. Qe2 Bg4 22. Qd3 Rxb3 23. axb3 Qa2 24. Nc3 Qxb3 25. Kd2 Qb4 26. Kc1 a5 27. Rff2 a4 28. Nd1 Qe1 29. Rf1 Qxh4 30. g3 Qf6 31. Nc3 Rb3 32. Qd5 a3 33. Qa8+ Kh7 34. e5 axb2+ 35. Kb1 dxe5 36. Ne4 Qf5 37. Ng5+ Qxg5 38. fxg5 Bf5 39. Rxf5 gxf5 40. Rxb2 Rxg3 41. Rg2 Rd3 42. Qe8 Kg6 43. Qxe7 Rb3+ 44. Kc2 Rb6 45. Qxc5 Ra6 46. Kb3 h4 47. Rh2 Re6 48. Rxh4 e4 49. Qe3 Rd6 50. Kb4 Rd3 51. Qe2 Rf3 52. Rh1 Bf8+ 53. c5 Kxg5 54. Qd2+ Kg6 55. Rg1+ Kf6 56. Qd4+ Ke6 57. Rd1 Be7 58. Kb5 Rb3+ 59. Ka6 Ra3+ 60. Kb7 e3 61. c6 Rb3+ 62. Kc8 Ra3 63. Qd7+ Kf6 64. Rd6+ 1-0

[Event "45th FIDE Womens Olympiad 2024"]
[Site "Budapest"]
[Date "2024.09.13"]
[Round "3.130"]
[White "Wafa, Shahenda"]
[Black "Makwena, Christine"]
[Result "1-0"]
[ECO "B94"]
[WhiteElo "2102"]
[BlackElo "1860"]
[Annotator "NA RC"]
[PlyCount "33"]
[EventDate "2024.09.05"]
[EventType "team-tourn"]
[EventCountry "HUN"]
[SourceTitle "playchess.com"]
[Source "ChessBase"]
[SourceQuality "1"]
[WhiteTeam "Egypt"]
[BlackTeam "Zimbabwe"]
[WhiteTeamCountry "EGY"]
[BlackTeamCountry "ZIM"]
[TimeControl "40/5400+30:1800+30"]

1. e4 c5 2. Nf3 d6 3. d4 cxd4 4. Nxd4 Nf6 5. Nc3 a6 6. Bg5 Nbd7 7. f4 Qc7 8. Qf3 b5 9. e5 Bb7 10. exd6 Qb6 11. Qe3 Qxd6 12. O-O-O Qc7 13. Bxb5 Qc5 14. Bxd7+ Nxd7 15. Rhe1 e6 16. Qh3 Nf6 17. Nxe6 1-0